[Event "XII Closed IM BCC 2021"]
[Site "Barcelona"]
[Date "2021.03.21"]
[Round "7.4"]
[White "Hernandez, Cristian Andres"]
[Black "Garcia Ramos, Daniel"]
[Result "1/2-1/2"]
[ECO "A11"]
[WhiteElo "2355"]
[BlackElo "2397"]
[Annotator "ChessBase"]
[PlyCount "27"]
[EventDate "2021.03.15"]
[EventType "tourn"]
[EventCountry "ESP"]
[SourceTitle "playchess.com"]
[Source "ChessBase"]
[SourceQuality "1"]
[TimeControl "5400+30"]

1. c4 {[%emt 0:00:00]} c6 {[%emt 0:01:40]} 2. Nf3 {[%emt 0:00:12]} Nf6 {[%emt 0:00:30]} 3. Nc3 {[%emt 0:00:22]} d5 {[%emt 0:00:11]} 4. e3 {[%emt 0:00:07]} e6 {[%emt 0:00:20]} 5. Qc2 {[%emt 0:00:13]} Bd6 {[%emt 0:01:16]} 6. b3 {[%emt 0:00:33]} O-O {[%emt 0:04:29]} 7. Bb2 {[%emt 0:00:05]} e5 {[%emt 0:00:49]} 8. cxd5 {[%emt 0:00:32]} cxd5 {[%emt 0:00:06]} 9. Nb5 {[%emt 0:00:06]} Nc6 {[%emt 0:00:09]} 10. Nxd6 {[%emt 0:00:07]} Qxd6 {[%emt 0:00:06]} 11. h3 {[%emt 0:12:02]} Bd7 {[%emt 0:21:59]} 12. Rc1 {[%emt 0:04:34]} Rac8 {[%emt 0:07:00]} 13. Qc5 {[%emt 0:03:42]} Qe6 {[%emt 0:06:48]} 14. Qa3 {[%emt 0:00:08]} 1/2-1/2